[Event "*** SCC Grand Prix: Titled Tuesday Blitz"]
[Site "Chess.com"]
[Date "2020.07.21"]
[Round "1"]
[White "Bayernbk"]
[Black "GustavoJuarezF"]
[Result "1-0"]
[WhiteElo "2487"]
[BlackElo "2012"]
[TimeControl "180+1"]
[EndTime "10:01:45 PDT"]
[Termination "Bayernbk won by resignation"]

1. e4 {[%clk 0:02:54.4]} 1... c5 {[%clk 0:02:59.3]} 2. c3 {[%clk 0:02:54.6]}
2... g6 {[%clk 0:02:57.6]} 3. d4 {[%clk 0:02:54.6]} 3... cxd4 {[%clk 0:02:55.2]}
4. cxd4 {[%clk 0:02:55.5]} 4... Bg7 {[%clk 0:02:55.1]} 5. Nc3 {[%clk 0:02:55.5]}
5... d6 {[%clk 0:02:54.4]} 6. Nf3 {[%clk 0:02:56.1]} 6... Nf6 {[%clk 0:02:53.6]}
7. Be2 {[%clk 0:02:51.6]} 7... O-O {[%clk 0:02:52.7]} 8. O-O {[%clk 0:02:52.2]}
8... Nbd7 {[%clk 0:02:45.4]} 9. Be3 {[%clk 0:02:52.1]} 9... e5 {[%clk
0:02:44.7]} 10. dxe5 {[%clk 0:02:50]} 10... dxe5 {[%clk 0:02:43.1]} 11. Qd6
{[%clk 0:02:48.2]} 11... Qb6 {[%clk 0:02:31.1]} 12. Bxb6 {[%clk 0:02:45.2]} 1-0

[Event "*** SCC Grand Prix: Titled Tuesday Blitz"]
[Site "Chess.com"]
[Date "2020.07.21"]
[Round "1"]
[White "markberk"]
[Black "Shubinkirill2003"]
[Result "1/2-1/2"]
[WhiteElo "2335"]
[BlackElo "2655"]
[TimeControl "180+1"]
[EndTime "10:01:53 PDT"]
[Termination "Game drawn by agreement"]

1. Nf3 {[%clk 0:03:00.6]} 1... Nf6 {[%clk 0:02:59.5]} 2. g3 {[%clk 0:03:00]}
2... b5 {[%clk 0:02:58.8]} 3. Bg2 {[%clk 0:02:59.4]} 3... Bb7 {[%clk 0:02:58.5]}
4. d4 {[%clk 0:02:59.2]} 4... e6 {[%clk 0:02:58.1]} 5. O-O {[%clk 0:02:57.7]}
5... c5 {[%clk 0:02:58.1]} 6. c3 {[%clk 0:02:55.9]} 6... Be7 {[%clk 0:02:55.6]}
7. dxc5 {[%clk 0:02:55.2]} 7... Bxc5 {[%clk 0:02:55.3]} 8. b4 {[%clk 0:02:55.2]}
8... Bb6 {[%clk 0:02:52.9]} 9. a4 {[%clk 0:02:55.1]} 9... a6 {[%clk 0:02:50.3]}
10. axb5 {[%clk 0:02:53.9]} 10... axb5 {[%clk 0:02:51.2]} 11. Rxa8 {[%clk
0:02:52.1]} 11... Bxa8 {[%clk 0:02:52.1]} 12. Qd3 {[%clk 0:02:49.4]} 12... Bc6
{[%clk 0:02:45.7]} 13. Na3 {[%clk 0:02:48.4]} 13... O-O {[%clk 0:02:22.8]} 14.
Nxb5 {[%clk 0:02:47.2]} 14... d5 {[%clk 0:02:22.7]} 15. Nbd4 {[%clk 0:02:43.4]}
15... Bb7 {[%clk 0:02:22.9]} 16. Bf4 {[%clk 0:02:38.7]} 1/2-1/2

[Event "*** SCC Grand Prix: Titled Tuesday Blitz"]
[Site "Chess.com"]
[Date "2020.07.21"]
[Round "1"]
[White "northridgehawk"]
[Black "vinniethepooh"]
[Result "0-1"]
[WhiteElo "2346"]
[BlackElo "2702"]
[TimeControl "180+1"]
[EndTime "10:02:02 PDT"]
[Termination "vinniethepooh won by resignation"]

1. e4 {[%clk 0:02:44.2]} 1... c5 {[%clk 0:02:59.9]} 2. Nf3 {[%clk 0:02:40.1]}
2... d6 {[%clk 0:02:59.8]} 3. d4 {[%clk 0:02:41]} 3... cxd4 {[%clk 0:03:00.7]}
4. Nxd4 {[%clk 0:02:40.2]} 4... Nf6 {[%clk 0:03:01.1]} 5. Nc3 {[%clk 0:02:41.1]}
5... a6 {[%clk 0:03:01.4]} 6. h3 {[%clk 0:02:34.2]} 6... e6 {[%clk 0:03:01.4]}
7. g4 {[%clk 0:02:29.6]} 7... d5 {[%clk 0:03:01.7]} 8. exd5 {[%clk 0:02:23.1]}
8... Nxd5 {[%clk 0:03:02.6]} 9. Nde2 {[%clk 0:02:19.4]} 9... Nc6 {[%clk
0:03:02.4]} 10. Bg2 {[%clk 0:02:18.6]} 10... Nxc3 {[%clk 0:03:02.4]} 11. Qxd8+
{[%clk 0:02:17.4]} 11... Nxd8 {[%clk 0:03:03.3]} 12. Nxc3 {[%clk 0:02:16.6]}
12... Bd7 {[%clk 0:03:04.2]} 13. O-O {[%clk 0:02:12.9]} 13... Bc6 {[%clk
0:03:03.9]} 14. Ne4 {[%clk 0:02:11.9]} 14... Be7 {[%clk 0:02:53]} 15. Be3 {[%clk
0:02:08.2]} 15... O-O {[%clk 0:02:51.8]} 16. c4 {[%clk 0:02:07.4]} 16... f5
{[%clk 0:02:48.9]} 17. Ng3 {[%clk 0:02:03.2]} 17... f4 {[%clk 0:02:45.3]} 0-1

[Event "*** SCC Grand Prix: Titled Tuesday Blitz"]
[Site "Chess.com"]
[Date "2020.07.21"]
[Round "1"]
[White "chessdjw"]
[Black "Khazieva_Elza"]
[Result "1/2-1/2"]
[WhiteElo "2695"]
[BlackElo "2355"]
[TimeControl "180+1"]
[EndTime "10:02:13 PDT"]
[Termination "Game drawn by repetition"]

1. c4 {[%clk 0:02:54.8]} 1... Nf6 {[%clk 0:03:00]} 2. Nc3 {[%clk 0:02:53.3]}
2... d6 {[%clk 0:02:59.8]} 3. d4 {[%clk 0:02:51.8]} 3... Bf5 {[%clk 0:02:59.4]}
4. f3 {[%clk 0:02:37.5]} 4... e5 {[%clk 0:02:59]} 5. d5 {[%clk 0:02:34.6]} 5...
e4 {[%clk 0:02:56.6]} 6. g4 {[%clk 0:02:22.5]} 6... Nxg4 {[%clk 0:02:48.9]} 7.
fxg4 {[%clk 0:02:15]} 7... Qh4+ {[%clk 0:02:48.2]} 8. Kd2 {[%clk 0:02:15]} 8...
e3+ {[%clk 0:02:44.4]} 9. Kxe3 {[%clk 0:02:14.3]} 9... Qg5+ {[%clk 0:02:44.5]}
10. Kf2 {[%clk 0:01:53.7]} 10... Qh4+ {[%clk 0:02:43]} 11. Ke3 {[%clk
0:01:50.4]} 11... Qg5+ {[%clk 0:02:42.6]} 12. Kf2 {[%clk 0:01:41.3]} 12... Qh4+
{[%clk 0:02:42.3]} 13. Ke3 {[%clk 0:01:39.6]} 1/2-1/2

[Event "*** SCC Grand Prix: Titled Tuesday Blitz"]
[Site "Chess.com"]
[Date "2020.07.21"]
[Round "1"]
[White "zaur-mammadov"]
[Black "Quattroporte300"]
[Result "1-0"]
[WhiteElo "2650"]
[BlackElo "2319"]
[TimeControl "180+1"]
[EndTime "10:02:26 PDT"]
[Termination "zaur-mammadov won by resignation"]

1. e4 {[%clk 0:03:00.6]} 1... e5 {[%clk 0:02:59]} 2. Nf3 {[%clk 0:02:58.8]} 2...
Nc6 {[%clk 0:02:58.7]} 3. Nc3 {[%clk 0:02:57]} 3... Nf6 {[%clk 0:02:57.9]} 4.
Be2 {[%clk 0:02:55.5]} 4... d5 {[%clk 0:02:56.1]} 5. exd5 {[%clk 0:02:52.5]}
5... Nxd5 {[%clk 0:02:55.2]} 6. O-O {[%clk 0:02:53.4]} 6... Nxc3 {[%clk
0:02:52.6]} 7. bxc3 {[%clk 0:02:54.3]} 7... Bc5 {[%clk 0:02:49.1]} 8. Bb5 {[%clk
0:02:52.2]} 8... Qf6 {[%clk 0:02:18.9]} 9. d4 {[%clk 0:02:49.3]} 9... exd4
{[%clk 0:02:06.7]} 10. cxd4 {[%clk 0:02:50.2]} 10... O-O {[%clk 0:02:05]} 11.
Bg5 {[%clk 0:02:47.6]} 11... Qg6 {[%clk 0:01:41.8]} 12. dxc5 {[%clk 0:02:43.2]}
12... Bg4 {[%clk 0:01:42.1]} 13. Bxc6 {[%clk 0:02:38]} 13... bxc6 {[%clk
0:01:38.7]} 14. Ne5 {[%clk 0:02:36.3]} 1-0

[Event "*** SCC Grand Prix: Titled Tuesday Blitz"]
[Site "Chess.com"]
[Date "2020.07.21"]
[Round "1"]
[White "WIDBIFS"]
[Black "MarceloPlaya"]
[Result "1-0"]
[WhiteElo "2663"]
[BlackElo "2325"]
[TimeControl "180+1"]
[EndTime "10:02:38 PDT"]
[Termination "WIDBIFS won by resignation"]

1. d4 {[%clk 0:03:00.9]} 1... e6 {[%clk 0:02:54.3]} 2. Nf3 {[%clk 0:03:01]} 2...
Nf6 {[%clk 0:02:51.1]} 3. Bf4 {[%clk 0:03:01.2]} 3... d5 {[%clk 0:02:47.8]} 4.
e3 {[%clk 0:03:01.7]} 4... c5 {[%clk 0:02:47.1]} 5. Nbd2 {[%clk 0:03:01.5]} 5...
Nc6 {[%clk 0:02:46.8]} 6. c3 {[%clk 0:03:01.8]} 6... Bd6 {[%clk 0:02:45.9]} 7.
Bg3 {[%clk 0:03:02.2]} 7... O-O {[%clk 0:02:44.5]} 8. Bd3 {[%clk 0:03:02.6]}
8... b6 {[%clk 0:02:40.9]} 9. Qe2 {[%clk 0:03:03]} 9... a5 {[%clk 0:02:35.5]}
10. Rd1 {[%clk 0:02:59.9]} 10... Qe7 {[%clk 0:02:26.4]} 11. e4 {[%clk
0:02:58.8]} 11... Bxg3 {[%clk 0:02:19.9]} 12. hxg3 {[%clk 0:02:58.3]} 12... cxd4
{[%clk 0:02:18.6]} 13. e5 {[%clk 0:02:48.5]} 13... dxc3 {[%clk 0:01:33.7]} 14.
exf6 {[%clk 0:02:48.4]} 14... cxd2+ {[%clk 0:01:33]} 15. Nxd2 {[%clk 0:02:48]}
15... Qxf6 {[%clk 0:01:29.3]} 16. Bxh7+ {[%clk 0:02:48.1]} 16... Kh8 {[%clk
0:01:28.6]} 17. Bg6+ {[%clk 0:02:48.5]} 17... Kg8 {[%clk 0:01:26]} 18. Rh8+
{[%clk 0:02:48.9]} 1-0

[Event "*** SCC Grand Prix: Titled Tuesday Blitz"]
[Site "Chess.com"]
[Date "2020.07.21"]
[Round "1"]
[White "Bigfish1995"]
[Black "NormWeinstein"]
[Result "1-0"]
[WhiteElo "3020"]
[BlackElo "2456"]
[TimeControl "180+1"]
[EndTime "10:03:10 PDT"]
[Termination "Bigfish1995 won by resignation"]

1. d4 {[%clk 0:03:00.9]} 1... Nf6 {[%clk 0:02:54.9]} 2. c4 {[%clk 0:02:59.8]}
2... g6 {[%clk 0:02:54.9]} 3. Nc3 {[%clk 0:02:59.2]} 3... Bg7 {[%clk 0:02:55.4]}
4. e4 {[%clk 0:02:59.1]} 4... O-O {[%clk 0:02:55.8]} 5. Be2 {[%clk 0:02:58.8]}
5... c5 {[%clk 0:02:55.7]} 6. Nf3 {[%clk 0:02:51]} 6... d6 {[%clk 0:02:54.9]} 7.
O-O {[%clk 0:02:50.1]} 7... Bg4 {[%clk 0:02:54.6]} 8. d5 {[%clk 0:02:45.9]} 8...
e6 {[%clk 0:02:54.4]} 9. Be3 {[%clk 0:02:40.1]} 9... exd5 {[%clk 0:02:51.8]} 10.
cxd5 {[%clk 0:02:40.2]} 10... Re8 {[%clk 0:02:49.6]} 11. Nd2 {[%clk 0:02:40.3]}
11... Bxe2 {[%clk 0:02:49.3]} 12. Qxe2 {[%clk 0:02:40.6]} 12... Nbd7 {[%clk
0:02:49.1]} 13. a4 {[%clk 0:02:39.6]} 13... a6 {[%clk 0:02:48.5]} 14. a5 {[%clk
0:02:26.6]} 14... Rb8 {[%clk 0:02:47.2]} 15. Rfb1 {[%clk 0:02:25.4]} 15... b5
{[%clk 0:02:45.1]} 16. axb6 {[%clk 0:02:23.9]} 16... Rxb6 {[%clk 0:02:32.3]} 17.
Nc4 {[%clk 0:02:23.2]} 17... Nxe4 {[%clk 0:02:32]} 18. Nxe4 {[%clk 0:02:21.2]}
18... Rxe4 {[%clk 0:02:30.3]} 19. Nxb6 {[%clk 0:02:21.6]} 19... Nxb6 {[%clk
0:02:24.8]} 20. Qxa6 {[%clk 0:02:21.7]} 20... Nxd5 {[%clk 0:02:20.7]} 21. Qc6
{[%clk 0:02:21.9]} 1-0

[Event "*** SCC Grand Prix: Titled Tuesday Blitz"]
[Site "Chess.com"]
[Date "2020.07.21"]
[Round "1"]
[White "RestartingChess"]
[Black "LimaRR"]
[Result "1-0"]
[WhiteElo "2517"]
[BlackElo "2100"]
[TimeControl "180+1"]
[EndTime "10:03:10 PDT"]
[Termination "RestartingChess won by resignation"]

1. e4 {[%clk 0:03:00.9]} 1... c5 {[%clk 0:02:59.6]} 2. Nf3 {[%clk 0:02:59.7]}
2... d6 {[%clk 0:02:59.6]} 3. Bb5+ {[%clk 0:02:58.6]} 3... Nd7 {[%clk
0:02:58.2]} 4. c4 {[%clk 0:02:58.9]} 4... g6 {[%clk 0:02:58]} 5. Nc3 {[%clk
0:02:59]} 5... Bg7 {[%clk 0:02:57.9]} 6. O-O {[%clk 0:02:59.3]} 6... Nf6 {[%clk
0:02:57.8]} 7. d3 {[%clk 0:02:59.9]} 7... O-O {[%clk 0:02:49.8]} 8. h3 {[%clk
0:03:00.1]} 8... a6 {[%clk 0:02:49.7]} 9. Ba4 {[%clk 0:03:00.6]} 9... Rb8 {[%clk
0:02:49.6]} 10. Bc2 {[%clk 0:02:59.2]} 10... b5 {[%clk 0:02:48.2]} 11. a3 {[%clk
0:02:55.1]} 11... b4 {[%clk 0:02:44.9]} 12. axb4 {[%clk 0:02:54.3]} 12... cxb4
{[%clk 0:02:44.7]} 13. Nd5 {[%clk 0:02:53.9]} 13... e6 {[%clk 0:02:43]} 14.
Nxf6+ {[%clk 0:02:48.4]} 14... Nxf6 {[%clk 0:02:41.5]} 15. d4 {[%clk 0:02:47.5]}
15... Qc7 {[%clk 0:02:40.6]} 16. b3 {[%clk 0:02:46.6]} 16... e5 {[%clk 0:02:37]}
17. Bb2 {[%clk 0:02:36.8]} 17... Re8 {[%clk 0:02:35.4]} 18. Re1 {[%clk
0:02:25.6]} 18... Bb7 {[%clk 0:02:34.7]} 19. Ra2 {[%clk 0:02:10.2]} 19... exd4
{[%clk 0:02:28.8]} 20. Bxd4 {[%clk 0:02:06.2]} 20... Nxe4 {[%clk 0:02:26.2]} 21.
Bxg7 {[%clk 0:01:52.4]} 21... Kxg7 {[%clk 0:02:21.5]} 22. Bxe4 {[%clk
0:01:51.2]} 22... Bxe4 {[%clk 0:02:12.2]} 23. Qd4+ {[%clk 0:01:50.1]} 1-0

[Event "*** SCC Grand Prix: Titled Tuesday Blitz"]
[Site "Chess.com"]
[Date "2020.07.21"]
[Round "1"]
[White "dpopadic"]
[Black "Volodar_Murzin"]
[Result "0-1"]
[WhiteElo "2367"]
[BlackElo "2722"]
[TimeControl "180+1"]
[EndTime "10:03:26 PDT"]
[Termination "Volodar_Murzin won by resignation"]

1. e4 {[%clk 0:02:54.2]} 1... c6 {[%clk 0:02:58.2]} 2. d4 {[%clk 0:02:53]} 2...
d5 {[%clk 0:02:58.2]} 3. Nd2 {[%clk 0:02:52.7]} 3... dxe4 {[%clk 0:02:57.9]} 4.
Nxe4 {[%clk 0:02:52.8]} 4... Bf5 {[%clk 0:02:58.4]} 5. Ng3 {[%clk 0:02:52.5]}
5... Bg6 {[%clk 0:02:58.5]} 6. h4 {[%clk 0:02:53.2]} 6... h6 {[%clk 0:02:58.6]}
7. Nf3 {[%clk 0:02:53.4]} 7... Nd7 {[%clk 0:02:58.5]} 8. h5 {[%clk 0:02:53.6]}
8... Bh7 {[%clk 0:02:58.7]} 9. Bd3 {[%clk 0:02:54.1]} 9... Bxd3 {[%clk
0:02:57.2]} 10. Qxd3 {[%clk 0:02:54.1]} 10... e6 {[%clk 0:02:58.1]} 11. Bd2
{[%clk 0:02:54.2]} 11... Ngf6 {[%clk 0:02:57.4]} 12. O-O-O {[%clk 0:02:53.6]}
12... Be7 {[%clk 0:02:57.7]} 13. Ne4 {[%clk 0:02:51.5]} 13... Nxe4 {[%clk
0:02:57]} 14. Qxe4 {[%clk 0:02:51.6]} 14... Nf6 {[%clk 0:02:57.7]} 15. Qe2
{[%clk 0:02:51.5]} 15... Qd5 {[%clk 0:02:57.7]} 16. Kb1 {[%clk 0:02:51.4]} 16...
a5 {[%clk 0:02:48.3]} 17. Ne5 {[%clk 0:02:46.8]} 17... a4 {[%clk 0:02:42]} 18.
a3 {[%clk 0:02:41.6]} 18... Qe4 {[%clk 0:02:38.2]} 19. Be3 {[%clk 0:02:38.7]}
19... Nd5 {[%clk 0:02:36.4]} 20. Ka1 {[%clk 0:02:28]} 20... b5 {[%clk 0:02:25]}
21. Nxc6 {[%clk 0:02:21.5]} 21... Nxe3 {[%clk 0:02:23.3]} 22. Nxe7 {[%clk
0:02:18.2]} 22... Nxc2+ {[%clk 0:02:19.8]} 23. Kb1 {[%clk 0:02:11]} 23... Qxe2
{[%clk 0:02:18.7]} 24. Nc6 {[%clk 0:02:09.4]} 24... b4 {[%clk 0:02:16.2]} 25. d5
{[%clk 0:02:07.8]} 25... bxa3 {[%clk 0:02:11.2]} 26. dxe6 {[%clk 0:02:06.1]}
26... fxe6 {[%clk 0:02:08.7]} 27. Rc1 {[%clk 0:02:02.5]} 27... Qc4 {[%clk
0:02:00.2]} 0-1

[Event "*** SCC Grand Prix: Titled Tuesday Blitz"]
[Site "Chess.com"]
[Date "2020.07.21"]
[Round "1"]
[White "AsaHoffmann"]
[Black "LPSupi"]
[Result "0-1"]
[WhiteElo "2428"]
[BlackElo "2870"]
[TimeControl "180+1"]
[EndTime "10:03:39 PDT"]
[Termination "LPSupi won by resignation"]

1. d4 {[%clk 0:02:54.4]} 1... Nf6 {[%clk 0:02:59]} 2. Bg5 {[%clk 0:02:53]} 2...
g6 {[%clk 0:02:58.1]} 3. Nc3 {[%clk 0:02:51.9]} 3... c5 {[%clk 0:02:53.6]} 4.
dxc5 {[%clk 0:02:47]} 4... Bg7 {[%clk 0:02:49.6]} 5. e4 {[%clk 0:02:42.8]} 5...
Qa5 {[%clk 0:02:49.5]} 6. Qd2 {[%clk 0:02:37.3]} 6... Qxc5 {[%clk 0:02:45.9]} 7.
f3 {[%clk 0:02:31.5]} 7... O-O {[%clk 0:02:42.3]} 8. Be3 {[%clk 0:02:21.7]} 8...
Qa5 {[%clk 0:02:41]} 9. Bc4 {[%clk 0:02:20.7]} 9... d6 {[%clk 0:02:33]} 10. Nge2
{[%clk 0:02:19.3]} 10... Nc6 {[%clk 0:02:32.6]} 11. a3 {[%clk 0:02:15]} 11...
Bd7 {[%clk 0:02:32.4]} 12. Bh6 {[%clk 0:02:04.9]} 12... Bxh6 {[%clk 0:02:16.7]}
13. Qxh6 {[%clk 0:02:03.5]} 13... Rac8 {[%clk 0:01:54.2]} 14. Bb3 {[%clk
0:01:58]} 14... Ne5 {[%clk 0:01:48.9]} 15. h4 {[%clk 0:01:46.5]} 15... Kh8
{[%clk 0:01:43.3]} 16. h5 {[%clk 0:01:39.5]} 16... g5 {[%clk 0:01:42.9]} 17.
Qxg5 {[%clk 0:01:31.9]} 17... Nxf3+ {[%clk 0:01:42.2]} 18. gxf3 {[%clk
0:01:29.2]} 18... Qxg5 {[%clk 0:01:43.1]} 0-1

[Event "*** SCC Grand Prix: Titled Tuesday Blitz"]
[Site "Chess.com"]
[Date "2020.07.21"]
[Round "1"]
[White "djano"]
[Black "estherzillli"]
[Result "1-0"]
[WhiteElo "2465"]
[BlackElo "1654"]
[TimeControl "180+1"]
[EndTime "10:03:46 PDT"]
[Termination "djano won by resignation"]

1. d4 {[%clk 0:03:00.9]} 1... d5 {[%clk 0:02:54.3]} 2. Nf3 {[%clk 0:03:00.5]}
2... Nf6 {[%clk 0:02:52.9]} 3. Bf4 {[%clk 0:03:00.5]} 3... e6 {[%clk 0:02:51.4]}
4. e3 {[%clk 0:03:00.2]} 4... Bd6 {[%clk 0:02:51.1]} 5. Ne5 {[%clk 0:02:58.4]}
5... Nbd7 {[%clk 0:02:48.7]} 6. Nd2 {[%clk 0:02:58.1]} 6... Bxe5 {[%clk
0:02:47]} 7. dxe5 {[%clk 0:02:57.6]} 7... Ne4 {[%clk 0:02:41]} 8. Nxe4 {[%clk
0:02:51.8]} 8... dxe4 {[%clk 0:02:40.6]} 9. Qg4 {[%clk 0:02:52.1]} 9... O-O
{[%clk 0:02:39.2]} 10. Bh6 {[%clk 0:02:50.2]} 10... g6 {[%clk 0:02:28.7]} 11.
Bxf8 {[%clk 0:02:50.2]} 11... Qxf8 {[%clk 0:02:27.7]} 12. Qxe4 {[%clk 0:02:50]}
12... Nc5 {[%clk 0:02:22.5]} 13. Qd4 {[%clk 0:02:46.3]} 13... b6 {[%clk
0:02:21.1]} 14. O-O-O {[%clk 0:02:38.2]} 14... Bb7 {[%clk 0:02:19.1]} 15. f3
{[%clk 0:02:36]} 15... Bd5 {[%clk 0:02:01.8]} 16. Kb1 {[%clk 0:02:30]} 16... Rd8
{[%clk 0:01:59.1]} 17. Ka1 {[%clk 0:02:11.8]} 17... Rd7 {[%clk 0:01:44.1]} 18.
Bc4 {[%clk 0:02:03.4]} 18... Bc6 {[%clk 0:01:41.2]} 19. Qh4 {[%clk 0:01:58.2]}
19... Rxd1+ {[%clk 0:01:32.5]} 20. Rxd1 {[%clk 0:01:59.1]} 20... Qc8 {[%clk
0:01:22.1]} 21. Rd8+ {[%clk 0:01:57.5]} 1-0

[Event "*** SCC Grand Prix: Titled Tuesday Blitz"]
[Site "Chess.com"]
[Date "2020.07.21"]
[Round "1"]
[White "romulocardoso"]
[Black "ThePatrick27"]
[Result "0-1"]
[WhiteElo "2141"]
[BlackElo "2538"]
[TimeControl "180+1"]
[EndTime "10:03:47 PDT"]
[Termination "ThePatrick27 won by resignation"]

1. e4 {[%clk 0:03:00.9]} 1... e5 {[%clk 0:02:57.9]} 2. Nf3 {[%clk 0:03:01]} 2...
Nc6 {[%clk 0:02:58.2]} 3. d4 {[%clk 0:03:01.3]} 3... exd4 {[%clk 0:02:59.1]} 4.
Bc4 {[%clk 0:03:01.7]} 4... Nf6 {[%clk 0:02:58.9]} 5. Ng5 {[%clk 0:03:02]} 5...
d5 {[%clk 0:02:58.3]} 6. exd5 {[%clk 0:03:02.2]} 6... Na5 {[%clk 0:02:56.9]} 7.
Bb5+ {[%clk 0:03:01.9]} 7... c6 {[%clk 0:02:57.1]} 8. dxc6 {[%clk 0:03:02.8]}
8... bxc6 {[%clk 0:02:57.7]} 9. Bd3 {[%clk 0:03:02.2]} 9... Be7 {[%clk
0:02:46.8]} 10. O-O {[%clk 0:03:02.1]} 10... O-O {[%clk 0:02:46.4]} 11. Re1
{[%clk 0:03:01.9]} 11... c5 {[%clk 0:02:36.1]} 12. Bd2 {[%clk 0:02:51.1]} 12...
Nc6 {[%clk 0:02:10.4]} 13. Qf3 {[%clk 0:02:47.9]} 13... Bd7 {[%clk 0:02:07.7]}
14. Bb5 {[%clk 0:02:42.2]} 14... Ne5 {[%clk 0:01:54.9]} 15. Rxe5 {[%clk
0:02:41.4]} 15... Bxb5 {[%clk 0:01:54.4]} 16. Na3 {[%clk 0:02:40.7]} 16... Bd7
{[%clk 0:01:43.6]} 17. Rae1 {[%clk 0:02:40.5]} 17... Bd6 {[%clk 0:01:39.8]} 18.
R5e2 {[%clk 0:02:40]} 18... Bg4 {[%clk 0:01:38.9]} 19. Qd3 {[%clk 0:02:34.2]}
19... Bxe2 {[%clk 0:01:39]} 20. Rxe2 {[%clk 0:02:34.8]} 20... Re8 {[%clk
0:01:38.7]} 21. Nc4 {[%clk 0:02:34.7]} 21... Rxe2 {[%clk 0:01:37.9]} 22. Qxe2
{[%clk 0:02:35.6]} 22... Bf8 {[%clk 0:01:37.8]} 23. h4 {[%clk 0:02:34]} 23... h6
{[%clk 0:01:37.1]} 24. Nh3 {[%clk 0:02:12.6]} 24... Qd7 {[%clk 0:01:26.1]} 25.
Qf3 {[%clk 0:02:11.1]} 25... Re8 {[%clk 0:01:25.3]} 26. Bxh6 {[%clk 0:02:11.2]}
26... Re1+ {[%clk 0:01:22.8]} 27. Kh2 {[%clk 0:02:10.8]} 27... Ng4+ {[%clk
0:01:23.1]} 28. Kg3 {[%clk 0:02:10.3]} 28... Nxh6 {[%clk 0:01:23.1]} 29. Ne5
{[%clk 0:02:10.1]} 29... Rxe5 {[%clk 0:01:22.2]} 0-1

[Event "*** SCC Grand Prix: Titled Tuesday Blitz"]
[Site "Chess.com"]
[Date "2020.07.21"]
[Round "1"]
[White "Savva09022009"]
[Black "OparinGrigoriy"]
[Result "0-1"]
[WhiteElo "2445"]
[BlackElo "2932"]
[TimeControl "180+1"]
[EndTime "10:03:48 PDT"]
[Termination "OparinGrigoriy won by resignation"]

1. d4 {[%clk 0:03:00]} 1... Nf6 {[%clk 0:02:58.8]} 2. Nc3 {[%clk 0:03:00.3]}
2... e6 {[%clk 0:02:59.7]} 3. e4 {[%clk 0:02:58.8]} 3... d5 {[%clk 0:03:00.2]}
4. e5 {[%clk 0:02:56.5]} 4... Nfd7 {[%clk 0:03:00.6]} 5. f4 {[%clk 0:02:56.3]}
5... c5 {[%clk 0:03:00.6]} 6. Nf3 {[%clk 0:02:57.1]} 6... Nc6 {[%clk 0:03:01.2]}
7. Be3 {[%clk 0:02:56.1]} 7... a6 {[%clk 0:03:01.5]} 8. Qd2 {[%clk 0:02:55.8]}
8... b5 {[%clk 0:03:00.4]} 9. dxc5 {[%clk 0:02:53.2]} 9... Bxc5 {[%clk
0:02:59.3]} 10. Bxc5 {[%clk 0:02:51.9]} 10... Nxc5 {[%clk 0:03:00.2]} 11. Nd4
{[%clk 0:02:51.8]} 11... Qb6 {[%clk 0:02:55.2]} 12. O-O-O {[%clk 0:02:46.6]}
12... Bd7 {[%clk 0:02:52.6]} 13. f5 {[%clk 0:02:33.3]} 13... b4 {[%clk
0:02:49.1]} 14. fxe6 {[%clk 0:02:23.6]} 14... fxe6 {[%clk 0:02:50]} 15. Nce2
{[%clk 0:02:23.9]} 15... Nxe5 {[%clk 0:02:40.2]} 16. Nf4 {[%clk 0:02:20.5]}
16... O-O {[%clk 0:02:28.8]} 17. Re1 {[%clk 0:02:18.9]} 17... Ne4 {[%clk
0:02:27.9]} 18. Qe3 {[%clk 0:02:06]} 18... Ng4 {[%clk 0:02:21.8]} 19. Qg3 {[%clk
0:01:48.4]} 19... Qxd4 {[%clk 0:02:20.6]} 20. Bd3 {[%clk 0:01:43.3]} 20... Nxg3
{[%clk 0:01:58.6]} 21. hxg3 {[%clk 0:01:17.3]} 21... Rxf4 {[%clk 0:01:57.4]} 0-1

[Event "*** SCC Grand Prix: Titled Tuesday Blitz"]
[Site "Chess.com"]
[Date "2020.07.21"]
[Round "1"]
[White "Beca95"]
[Black "Siemba"]
[Result "1-0"]
[WhiteElo "2824"]
[BlackElo "2409"]
[TimeControl "180+1"]
[EndTime "10:03:57 PDT"]
[Termination "Beca95 won by resignation"]

1. d4 {[%clk 0:03:00.5]} 1... d5 {[%clk 0:02:51.2]} 2. c4 {[%clk 0:02:58.9]}
2... c5 {[%clk 0:02:51.2]} 3. cxd5 {[%clk 0:02:57.8]} 3... Nf6 {[%clk
0:02:51.6]} 4. Nf3 {[%clk 0:02:48.4]} 4... e6 {[%clk 0:02:44.4]} 5. dxe6 {[%clk
0:02:40.9]} 5... Bxe6 {[%clk 0:02:45.3]} 6. e3 {[%clk 0:02:37.2]} 6... Nc6
{[%clk 0:02:44.7]} 7. Bb5 {[%clk 0:02:35.4]} 7... Qb6 {[%clk 0:02:41.2]} 8. Nc3
{[%clk 0:02:32.3]} 8... O-O-O {[%clk 0:02:32.8]} 9. Bxc6 {[%clk 0:02:04.4]} 9...
Qxc6 {[%clk 0:02:33.7]} 10. Qa4 {[%clk 0:01:44.2]} 10... Qxa4 {[%clk 0:02:02.9]}
11. Nxa4 {[%clk 0:01:45.1]} 11... cxd4 {[%clk 0:02:03.8]} 12. Nxd4 {[%clk
0:01:44.3]} 12... Bd5 {[%clk 0:02:03.8]} 13. f3 {[%clk 0:01:44.2]} 13... b6
{[%clk 0:01:48.6]} 14. Kf2 {[%clk 0:01:43.7]} 14... Bd6 {[%clk 0:01:42.2]} 15.
b3 {[%clk 0:01:43.2]} 15... Kd7 {[%clk 0:01:40.7]} 16. Bb2 {[%clk 0:01:42.7]}
16... Bb7 {[%clk 0:01:38.6]} 17. Rhd1 {[%clk 0:01:38.8]} 1-0